bitfinex/quotes_ETHUSD_20220311
["timestamp","ask_amount","ask_price","bid_price","bid_amount"]
[1647002145695,0.07036972,2664.5,2663.4,0.95235026]
[1647002145896,0.1642416,2664.7,2663.5,3.5]
[1647002146097,0.00285133,2663.6,2663.5,3.5]
[1647002146298,0.00285133,2663.6,2663.5,1.0]
[1647002146500,0.00285133,2663.6,2663.4,2.25235026]
[1647002146697,0.00285133,2663.6,2663.4,0.95235026]
[1647002146910,0.06682625,2664.7,2663.4,0.95235026]
[1647002147104,0.06682625,2664.7,2663.5,0.3769]
[1647002147301,0.00285133,2663.7,2663.5,0.43957857]
[1647002147701,0.00285133,2663.7,2663.5,0.06267857]
[1647002148104,0.00285133,2663.7,2662.5,0.5]
[1647002148303,0.461,2663.9,2662.5,0.5]
[1647002148503,0.461,2663.9,2662.3,0.0688311]
[1647002148504,0.00285133,2663.7,2662.3,0.0688311]
[1647002148714,0.00285133,2663.7,2662.0,1.9407]
[1647002148715,0.461,2663.6,2662.0,0.5054]
[1647002148903,3.75238162,2663.5,2662.0,1.0054]
[1647002149159,3.75238162,2663.5,2662.0,0.7554]
[1647002149160,1.11110871,2662.7,2662.0,0.7554]
[1647002149351,1.41110871,2662.7,2662.0,0.7554]
[1647002149550,1.41110871,2662.7,2662.1,0.07230784]
[1647002149958,0.93904,2662.5,2661.7,0.07646151]
[1647002150171,0.93904,2662.5,2661.7,0.00289254]
[1647002150172,0.93907,2662.2,2661.7,0.00289254]
[1647002150362,1.18904,2662.5,2661.7,0.00289254]
[1647002150363,1.461,2662.4,2661.7,0.00289254]
[1647002150657,1.0,2662.4,2661.7,0.00289254]
[1647002150855,1.09648254,2662.3,2661.7,0.00289254]
[1647002151054,0.00285128,2662.1,2661.7,0.00289254]
[1647002151656,5.128e-05,2662.1,2661.9,3.3769]
[1647002151857,0.4378,2663.8,2662.0,0.07092793]
[1647002151858,3.74997634,2663.7,2662.0,0.07092793]
[1647002152055,0.06620152,2663.3,2662.1,3.93868]
[1647002152253,0.93872,2663.2,2662.2,0.06047336]
[1647002152456,0.06463196,2663.1,2662.2,0.06047336]
[1647002152653,0.05730505,2663.3,2662.0,0.3]
[1647002152901,0.30730505,2663.3,2661.9,0.00414501]
[1647002153300,1.01520165,2662.8,2662.1,0.07179217]
[1647002153502,0.0008554,2662.8,2662.1,0.07179217]
[1647002154305,0.93885,2662.9,2662.1,0.07179217]
[1647002154505,0.94178434,2662.6,2661.9,0.0656895]
[1647002155005,0.94178434,2662.6,2661.9,0.00414501]
[1647002155509,0.94178434,2662.6,2661.7,0.57266533]
[1647002155510,1.77674122,2662.6,2661.8,0.84757158]
[1647002155704,0.00284434,2662.4,2661.8,0.84757158]
[1647002156205,0.00284434,2662.4,2661.8,0.93884]
[1647002156656,1.77674122,2662.6,2661.9,0.07313093]
[1647002156852,1.77674122,2662.6,2661.9,0.07156993]
[1647002157055,0.00266799,2662.2,2661.9,0.07156993]
[1647002157858,0.93894,2662.4,2661.9,0.07156993]
[1647002158259,0.00266794,2662.2,2661.9,0.07156993]
[1647002158864,1.88067794,2662.2,2661.7,0.45414501]
[1647002159062,1.87801,2662.2,2661.7,0.45414501]
[1647002159265,1.87801,2662.2,2661.4,1.0]
[1647002159266,0.05988575,2662.0,2661.1,0.2562]
[1647002159465,0.05988575,2662.0,2661.1,0.26136746]
[1647002159466,0.25,2661.9,2661.1,0.26136746]
[1647002159663,0.05988575,2662.0,2661.1,0.26136746]
[1647002159865,2.98468206,2661.9,2661.1,1.10483718]
[1647002160407,0.05695553,2661.8,2661.1,0.2562]
[1647002160614,0.05695553,2661.8,2661.1,0.26142023]
[1647002161111,0.93922,2661.7,2661.1,0.26142023]
[1647002161321,0.05997077,2661.6,2661.1,0.26142023]
[1647002161519,1.08842149,2661.4,2661.1,0.2562]
[1647002161913,1.08842149,2661.4,2661.1,0.26146024]
[1647002162313,0.05978632,2661.3,2661.1,0.26146024]
[1647002162711,0.05978632,2661.3,2661.1,0.2562]
[1647002162912,0.05978632,2661.3,2661.1,0.26146024]
[1647002163917,0.05978632,2661.3,2661.1,0.2562]
[1647002164148,0.05978632,2661.3,2661.1,0.26146032]
[1647002164553,0.05978632,2661.3,2661.1,0.26047422]
[1647002165158,0.26222719,2662.7,2661.1,0.26047422]
[1647002165159,0.06265643,2662.0,2661.1,0.32071552]
[1647002165358,0.06265643,2662.0,2661.2,0.93912]
[1647002165557,0.00085301,2662.2,2661.2,0.93912]
[1647002165959,0.90225102,2661.8,2661.1,1.62071552]
[1647002166156,0.93990301,2662.2,2661.1,0.0008]
[1647002166157,0.87833181,2661.4,2661.1,0.0008]
[1647002166457,0.06680107,2661.3,2661.1,0.0008]
[1647002167258,1.00615107,2661.3,2661.1,0.0008]
[1647002167458,0.93935,2661.3,2661.1,0.0008]
[1647002168308,1.81768181,2661.4,2661.1,0.0008]
[1647002168309,0.93935,2661.4,2661.1,0.0008]
[1647002168508,0.6487,2662.1,2661.1,0.0008]
[1647002168509,0.93921,2661.8,2661.1,0.0008]
[1647002169205,0.93921,2661.8,2661.1,0.00641779]
[1647002169605,1.06394173,2661.7,2661.1,0.00641779]
[1647002169804,0.93922,2661.6,2661.1,0.00641779]
[1647002170006,0.93922,2661.6,2661.1,0.0008]
[1647002170207,0.93922,2661.6,2661.1,0.0064177]
[1647002170406,1.87838,2661.6,2661.0,0.93919]
[1647002170706,1.87838,2661.6,2661.0,1.23419]
[1647002170913,1.87838,2661.6,2661.0,12.77113216]
[1647002170914,0.93916,2661.6,2661.0,12.77113216]
[1647002171109,0.93916,2661.6,2661.0,1.29113216]
[1647002171748,0.93915,2661.8,2661.0,4.23419]
[1647002171749,1.87837,2661.8,2661.0,4.23419]
[1647002171951,3.15396796,2663.0,2661.0,4.23419]
[1647002171952,3.0,2663.0,2661.4,3.0]
[1647002172152,3.0,2663.0,2661.8,0.93887]
[1647002172954,0.81791039,2662.6,2661.8,1.97315017]
[1647002173154,2.69575039,2662.6,2661.8,1.97315017]
[1647002173753,3.0,2663.0,2661.8,13.83005017]
[1647002173953,3.0,2663.0,2662.0,0.295]
[1647002174156,3.0,2663.0,2661.9,0.06582492]
[1647002174157,0.93877,2662.9,2662.1,0.93884]
[1647002174757,1.87764,2663.4,2663.2,1.05479038]
[1647002174957,0.99152534,2664.0,2663.2,1.05479038]
[1647002174958,0.1877,2664.3,2663.2,1.05479038]
[1647002175170,0.1877,2664.3,2663.2,1.35479038]
[1647002175412,0.93826,2665.1,2663.8,3.0]
[1647002175601,2.32498437,2665.8,2664.2,7.5]
[1647002175799,1.54979533,2665.7,2664.3,3.0]
[1647002176004,2.8173,2666.1,2664.3,3.3769]
[1647002176005,0.89453868,2665.2,2664.3,3.3769]
[1647002176210,0.89453868,2665.2,2664.4,0.06723268]
[1647002176406,0.89453868,2665.2,2664.4,11.48]
[1647002176407,0.00285838,2664.6,2664.4,11.48]
[1647002176603,0.00285838,2664.6,2664.3,0.93806]
[1647002177507,0.95159223,2664.8,2664.3,0.93806]
[1647002177705,0.00285838,2664.6,2664.3,0.93806]
[1647002177906,0.00285838,2664.6,2664.3,1.8760192]
[1647002178306,1.02177854,2664.8,2664.3,1.8760192]
[1647002178711,0.00285838,2664.6,2664.3,1.8760192]
[1647002178908,0.00285838,2664.6,2664.3,0.93806]
[1647002179155,0.00285838,2664.6,2663.8,3.3297036]
[1647002179156,0.00285838,2664.6,2663.8,1.4536]
[1647002179358,0.00285838,2664.6,2663.8,0.4536]
[1647002179554,0.0706065,2664.7,2663.8,0.4536]
[1647002179954,1.10569089,2664.3,2663.8,0.4536]
[1647002180157,1.16126204,2664.3,2663.8,0.4536]
[1647002180355,0.00285838,2664.6,2663.9,0.93819]
[1647002181159,0.00285838,2664.2,2663.9,0.93819]
[1647002181656,1.03957511,2664.1,2663.7,2.87638]
[1647002182555,1.03957511,2664.1,2663.7,1.0]
[1647002182755,1.03957511,2664.1,2663.5,1.87648]
[1647002183001,0.06984449,2664.0,2663.5,1.87648]
[1647002183402,0.07270287,2664.0,2663.5,1.87648]
[1647002183613,3.57270287,2664.0,2663.3,0.1877]
[1647002183802,0.05537254,2663.9,2663.3,0.1877]
[1647002184608,0.00285838,2663.7,2663.3,0.1877]
[1647002184912,1.14734505,2663.4,2663.3,0.1877]
[1647002185107,1.3850751,2663.4,2663.3,0.1877]
[1647002185307,1.3850751,2663.4,2662.5,0.3759]
[1647002185308,0.06923048,2663.3,2662.5,0.3759]
[1647002185507,0.06923048,2663.3,2662.0,0.295]
[1647002185709,0.06752486,2663.2,2661.6,12.00703469]
[1647002185908,0.06752486,2663.2,2661.7,11.5468132]
[1647002186108,0.06752486,2663.2,2662.0,1.87752]
[1647002186308,0.06752486,2663.2,2662.1,0.93881]
[1647002186949,0.06752486,2663.2,2661.9,1.87758]
[1647002187153,0.00285838,2662.8,2661.9,1.87758]
[1647002187353,0.00285838,2662.8,2661.6,0.4536]
[1647002187552,0.00285838,2662.8,2660.9,9.6605]
[1647002187553,0.461,2662.7,2661.0,10.30783517]
[1647002187750,0.461,2662.7,2661.3,1.8782]
[1647002187751,3.5,2662.6,2661.3,1.8782]
[1647002188049,3.5,2662.6,2661.0,0.295]
[1647002188050,0.05839229,2661.6,2661.0,0.295]
[1647002188255,0.05839229,2661.6,2660.9,0.9391246]
[1647002188454,0.05839229,2661.6,2661.0,0.00543491]
[1647002188955,0.05839229,2661.6,2661.0,0.30043491]
[1647002189455,0.05839229,2661.6,2661.0,0.295]
[1647002189657,0.05839229,2661.6,2661.0,0.00522972]
[1647002189658,1.02134383,2661.1,2661.0,0.00522972]
[1647002189861,1.08646659,2661.1,2661.0,0.00522972]
[1647002190503,1.02134383,2661.1,2660.5,0.4536]
[1647002190702,1.02134383,2661.1,2660.9,0.00522974]
[1647002190703,0.06265597,2661.0,2660.9,0.00522974]
[1647002191500,0.461,2661.6,2660.9,0.00522974]
[1647002191501,0.00285782,2661.7,2660.9,0.00522974]
[1647002191704,0.05499351,2661.7,2660.5,1.39297]
[1647002192105,0.05785123,2661.7,2660.8,0.0052299]
[1647002192307,0.99281292,2661.1,2660.8,0.0052299]
[1647002192808,0.05456149,2661.0,2660.5,1.39297]
[1647002193008,0.05456149,2661.0,2660.5,0.4536]
[1647002193209,0.05456149,2661.0,2660.8,0.00523912]
[1647002194463,0.05456149,2661.0,2660.8,0.01047833]
[1647002194664,0.05456149,2661.0,2660.8,0.00523921]
[1647002195265,0.05242762,2661.0,2660.8,0.00523921]
[1647002195663,0.05242762,2661.0,2660.8,0.01047842]
[1647002195867,0.05242762,2661.0,2660.8,0.00523921]
[1647002196465,0.05242762,2661.0,2660.2,0.25]
[1647002196665,0.05242762,2661.0,2660.8,0.00523859]
[1647002197064,0.87876539,2660.9,2660.8,0.00523859]
[1647002197666,0.05242762,2661.0,2660.0,14.30406956]
[1647002197918,0.0028514,2661.7,2660.7,0.00523681]
[1647002198104,0.0028514,2661.7,2660.8,0.939142]
[1647002198305,0.0028514,2661.7,2660.9,0.93916]
[1647002198504,0.0028514,2661.7,2661.0,0.93912]
[1647002198905,0.93183053,2661.8,2661.0,0.93912]
[1647002199106,0.05700814,2661.7,2661.0,2.81721]
[1647002199309,0.05700814,2661.7,2661.0,0.30523646]
[1647002199310,0.05986002,2661.7,2661.0,0.30523646]
[1647002199513,0.05986002,2661.7,2661.0,1.30523646]
[1647002199717,0.05986002,2661.7,2661.0,0.00523646]
[1647002200112,1.14376329,2661.4,2661.0,0.00523646]
[1647002200311,0.05227729,2661.3,2661.0,0.00523659]
[1647002200712,1.14376329,2661.4,2661.0,0.00523659]
[1647002201213,1.14376329,2661.4,2660.6,0.93933]
[1647002201650,0.05520646,2661.6,2661.0,0.0050596]
[1647002202553,0.05520646,2661.6,2660.0,0.545]
[1647002202554,1.0,2661.0,2660.0,0.545]
[1647002202754,3.961,2660.9,2660.0,1.34697315]
[1647002202952,0.04819869,2660.8,2660.7,0.02024067]
[1647002203155,0.87854628,2660.8,2660.7,0.02024067]
[1647002203351,0.88854628,2660.8,2660.7,0.02024067]
[1647002203552,0.87854628,2660.8,2660.7,0.02024067]
[1647002203851,0.87854628,2660.8,2660.0,1.09697315]
[1647002203852,1.08874912,2660.4,2660.0,1.09697315]
[1647002204052,0.05994051,2660.3,2659.9,0.3]
[1647002204256,0.05994051,2660.3,2659.6,1.93910037]
[1647002204456,0.05994051,2660.3,2659.6,1.09697315]
[1647002205259,0.9398,2660.7,2659.5,0.4536]
[1647002205501,0.05400579,2660.8,2659.5,0.4536]
[1647002205701,0.05400579,2660.8,2659.5,0.7536]
[1647002205906,0.05400579,2660.8,2659.6,0.93965]
[1647002205907,0.9397,2660.8,2659.6,0.93965]
[1647002206102,0.05162462,2660.7,2659.7,0.07439911]
[1647002206502,0.05162462,2660.7,2659.9,0.84999237]
[1647002206503,0.05014937,2660.6,2659.9,0.84999237]
[1647002207503,1.879118,2661.1,2660.1,0.00559705]
[1647002207504,0.05347339,2661.0,2660.1,0.00559705]
[1647002208104,0.05347339,2661.0,2660.1,0.94505705]
[1647002208305,0.05099928,2661.2,2660.1,0.94505705]
[1647002208505,1.0063625,2661.2,2660.4,1.02109505]
[1647002208706,0.0532263,2661.1,2660.4,1.02109505]
[1647002208904,0.0532263,2661.1,2660.4,1.02669156]
[1647002209358,0.00285729,2661.7,2660.4,1.02669156]
[1647002209754,0.05647122,2661.8,2660.4,1.02109505]
[1647002209961,0.0028575,2661.7,2660.6,0.00559616]
[1647002210155,0.93939,2661.6,2660.6,0.00559616]
[1647002210358,0.93939,2661.6,2660.8,1.00736382]
[1647002210359,1.03211276,2661.5,2660.8,1.00736382]
[1647002210556,0.0028575,2661.7,2660.8,1.00736382]
[1647002210954,0.05100588,2661.9,2660.8,1.00736382]
[1647002211154,0.00285793,2661.7,2661.0,0.00559555]
[1647002211755,0.00285793,2661.7,2661.3,0.90811198]
[1647002212361,0.23966177,2662.6,2661.3,0.90811198]
[1647002212569,5.815e-05,2661.7,2661.4,0.93902]
[1647002212763,5.815e-05,2661.7,2661.5,0.07178182]
[1647002213007,0.05719871,2662.9,2661.7,0.00074185]
[1647002213308,2.8174,2663.1,2662.0,0.0008]
[1647002213309,0.05685543,2663.1,2662.0,0.0008]
[1647002213504,1.2298,2663.2,2662.0,0.0008]
[1647002213505,1.2298,2663.2,2662.2,2.25413]
[1647002213705,2.8174,2664.0,2662.7,3.0]
[1647002213706,0.05370905,2664.0,2662.7,3.0]
[1647002213907,0.3759,2664.1,2662.7,3.8379]
[1647002214105,0.3759,2664.1,2662.8,0.08453573]
[1647002214307,0.3759,2664.1,2663.0,11.8569]
[1647002214507,0.3759,2664.1,2663.3,0.93811]
[1647002214708,0.3759,2664.1,2663.6,1.31503]
[1647002214911,0.3759,2664.1,2663.7,0.93814]
[1647002215112,1.03502162,2664.4,2663.8,0.07923282]
[1647002215309,0.25794125,2664.9,2663.8,0.07923282]
[1647002215706,1.8765183,2665.2,2663.8,0.07923282]
[1647002215910,0.00285123,2664.2,2663.8,0.07923282]
[1647002216109,0.00285123,2664.2,2663.6,1.0]
[1647002216310,0.00285123,2664.2,2663.5,0.3]
[1647002216509,0.00285123,2664.2,2663.4,1.87651]
[1647002216754,0.00285123,2664.2,2663.4,2.87651]
[1647002217052,0.0493361,2664.5,2663.4,2.25341]
[1647002217256,0.00285123,2664.0,2663.8,0.96199631]
[1647002218053,0.04772534,2665.2,2663.8,0.96199631]
[1647002218253,0.04772534,2665.2,2664.2,0.93805]
[1647002218457,0.90269003,2665.0,2664.2,0.93805]
[1647002218657,0.05158215,2664.9,2664.2,0.93805]
[1647002219257,0.05158215,2664.9,2664.1,0.3]
[1647002219456,0.05158215,2664.9,2664.0,2.17009]
[1647002219656,2.23814,2665.4,2664.0,3.17009]
[1647002219657,0.05707338,2664.5,2664.0,3.17009]
[1647002220164,0.05707338,2664.5,2664.0,0.294]
[1647002220413,0.00285123,2664.7,2664.0,1.0]
[1647002220604,0.05713952,2665.2,2663.9,4.8]
[1647002220806,0.05713952,2665.2,2663.9,4.5]
[1647002221109,0.00253936,2664.4,2664.1,0.9380064]
[1647002221306,0.00253936,2664.4,2664.3,0.96387921]
[1647002221507,0.00253936,2664.4,2664.2,3.5]
[1647002221808,0.05703217,2665.1,2664.2,1.0]
[1647002222007,0.05703217,2665.1,2664.2,1.938]
[1647002222207,0.05703217,2665.1,2664.2,0.938]
[1647002222408,1.00128519,2664.7,2664.2,0.938]
[1647002222612,1.00128519,2664.7,2664.1,0.3]
[1647002222613,1.06031543,2664.7,2664.1,0.3]
[1647002222815,1.06031543,2664.7,2664.0,0.294]
[1647002223114,1.06031543,2664.7,2663.1,1.461]
[1647002223115,0.05849378,2664.6,2663.5,0.25]
[1647002223312,0.05849378,2664.6,2663.2,2.3985]
[1647002223514,0.05849378,2664.6,2663.1,0.07648958]
[1647002223711,0.05849378,2664.6,2663.0,3.794]
[1647002223712,0.05459811,2664.5,2663.0,3.794]
[1647002223913,1.14771406,2663.9,2663.0,4.89435916]
[1647002224160,0.04591146,2663.8,2663.0,4.89435916]
[1647002224364,0.04591146,2663.8,2663.0,1.39435916]
[1647002224564,0.04591146,2663.8,2663.1,1.8768186]
[1647002224965,0.04591146,2663.8,2663.1,0.9383586]
[1647002225165,0.00285123,2664.0,2663.1,1.2383586]
[1647002225369,1.6994,2664.7,2663.2,5.37666]
[1647002225370,0.93835,2664.6,2663.2,5.37666]
[1647002225563,0.00285123,2663.6,2663.3,0.93839]
[1647002225773,0.00285123,2663.6,2662.9,1.8766481]
[1647002225774,0.00285123,2663.6,2662.6,0.07659547]
[1647002226365,0.97101394,2663.6,2662.7,0.960012]
[1647002226562,0.05331864,2663.5,2662.7,2.837022]
[1647002226765,0.05331864,2663.5,2662.7,1.87701]
[1647002226766,0.00285123,2663.2,2662.7,1.87701]
[1647002227762,0.05331864,2663.5,2662.7,1.87701]
[1647002228007,0.00285123,2663.1,2662.7,1.87701]
[1647002229005,0.05351141,2664.1,2662.7,1.87701]
[1647002229408,5.123e-05,2663.0,2662.7,15.6107695]
[1647002229609,5.123e-05,2663.0,2662.9,12.86201434]
[1647002229808,5.123e-05,2663.0,2662.9,13.16201434]
[1647002230009,0.05351141,2664.1,2663.0,0.0743699]
[1647002230209,0.05729344,2664.3,2663.1,0.3769]
[1647002230409,0.05729344,2664.3,2663.6,1.80851472]
[1647002230611,0.05729344,2664.3,2663.6,0.9382326]
[1647002230810,0.05729344,2664.3,2663.8,0.93826]
[1647002231011,0.0464415,2664.9,2663.8,0.93826]
[1647002231215,0.65933124,2665.6,2663.8,1.61516]
[1647002231420,0.0474452,2665.3,2664.3,0.9379228]
[1647002231853,0.05611176,2665.1,2664.3,1.74315497]
[1647002232055,0.05611176,2665.1,2664.6,0.93798]
[1647002232457,0.05611176,2665.1,2664.3,1.0]
[1647002232661,0.05611176,2665.1,2664.2,5.0516956]
[1647002232865,0.00284423,2665.0,2664.2,2.87585]
[1647002233662,1.07416523,2664.8,2664.2,1.87585]
[1647002233871,1.07416523,2664.8,2664.2,2.87585]
[1647002234066,0.00284423,2664.7,2664.2,1.87585]
[1647002234266,0.00284423,2664.7,2664.2,2.87585]
[1647002234462,0.00284423,2664.7,2664.2,1.87585]
[1647002234663,0.00284423,2664.7,2664.2,2.87585]
[1647002234864,0.04613242,2665.0,2664.2,1.87585]
[1647002235062,0.04613242,2665.0,2664.2,2.87585]
[1647002235262,0.04613242,2665.0,2664.2,1.87585]
[1647002235263,0.00284423,2664.6,2664.2,1.87585]
[1647002235502,0.00284423,2664.6,2664.2,2.87585]
[1647002235706,0.00284423,2664.6,2663.8,0.25]
[1647002235908,0.00284423,2664.6,2663.4,0.19393037]
[1647002236106,1.3994,2664.5,2663.1,0.25]
[1647002236306,0.05808439,2664.3,2663.1,0.25]
[1647002236507,1.06086673,2663.9,2663.0,1.41559078]
[1647002236708,0.04736783,2663.8,2663.0,0.36277693]
[1647002236908,0.04736783,2663.8,2663.0,0.06877693]
[1647002237210,1.36086673,2663.9,2662.7,0.3099]
[1647002237514,0.04730088,2663.7,2662.7,0.3099]
[1647002237709,1.13658848,2663.3,2662.7,0.3099]
[1647002238010,0.04747261,2663.2,2662.7,0.3099]
[1647002238811,0.91796754,2662.9,2662.7,0.3099]
[1647002239163,1.0,2664.9,2663.3,1.8764]
[1647002239365,0.20002117,2665.4,2663.8,0.93809]
[1647002239366,0.05308423,2665.1,2663.8,0.93809]
[1647002239562,0.04401597,2665.6,2664.1,0.9380001]
[1647002239762,0.04401597,2665.6,2664.2,4.15046135]
[1647002239961,0.04401597,2665.6,2664.5,0.93789]
[1647002239962,0.85417677,2665.1,2664.5,0.93789]
[1647002240162,0.85417677,2665.1,2664.3,0.07741631]
[1647002240163,0.85417677,2665.1,2664.4,1.8758323]
[1647002240464,0.85417677,2665.1,2664.2,1.87621]
[1647002240465,0.04706785,2665.0,2664.2,1.87621]
[1647002240865,0.04706785,2665.0,2664.1,0.3]
[1647002241065,0.98526785,2665.0,2664.1,0.3]
[1647002241264,0.83114963,2664.5,2663.8,0.3]
[1647002241465,0.83114963,2664.5,2663.8,0.1875]
[1647002241663,0.87940447,2664.5,2663.8,0.1875]
[1647002241864,0.87940447,2664.5,2663.7,0.1875]
[1647002241865,0.05086109,2664.4,2663.7,0.1875]
[1647002242067,0.05086109,2664.4,2663.7,1.0]
[1647002242264,0.05086109,2664.4,2663.6,0.3]
[1647002242667,1.13233878,2664.1,2663.5,3.06415]
[1647002243313,1.13233878,2664.1,2663.4,0.37250792]
[1647002243513,1.18566246,2664.1,2663.4,0.07250792]
[1647002243720,0.00283785,2663.9,2663.4,0.93846]
[1647002244321,0.00283785,2663.9,2663.2,0.5]
[1647002244322,1.12824545,2663.5,2663.2,0.5]
[1647002244519,1.17695894,2663.5,2663.1,0.09205185]
[1647002244716,0.461,2663.8,2663.1,0.09205185]
[1647002244923,0.05355488,2663.7,2663.1,0.09205185]
[1647002245418,0.00283785,2663.8,2663.1,0.09205185]
[1647002245617,0.00283785,2663.8,2663.2,0.9384699]
[1647002245817,0.461,2664.4,2663.3,0.1875]
[1647002245818,0.99432739,2664.0,2663.3,0.1875]
[1647002246018,0.99432739,2664.0,2663.2,1.12586]
[1647002246222,0.00283785,2663.5,2663.3,0.93835]
[1647002246661,0.00283785,2663.5,2663.4,0.1877]
[1647002247061,1.03718317,2664.0,2663.4,0.1877]
[1647002247262,0.00283785,2663.5,2663.3,3.6877]
[1647002247467,0.00283785,2663.5,2663.4,1.96709788]
[1647002247667,0.00283785,2663.5,2663.4,5.65479788]
[1647002247863,0.00283785,2663.5,2663.4,6.94133]
[1647002248265,1.04225318,2664.1,2663.5,1.87663]
[1647002248467,1.04225318,2664.1,2663.6,3.6877]
[1647002248666,0.04879671,2664.5,2663.7,0.9383006]
[1647002248871,0.04879671,2664.5,2663.8,0.9383]
[1647002249668,0.00283785,2664.3,2663.8,0.9383]
[1647002250068,0.00283785,2664.3,2663.8,0.4383]
[1647002250268,0.00283785,2664.3,2663.8,4.8765699]
[1647002250514,0.5341,2664.6,2664.0,0.93821]
[1647002250717,0.5341,2664.6,2664.1,3.5]
[1647002250916,0.5341,2664.6,2664.2,0.1875]
[1647002251120,0.05007046,2665.0,2664.2,0.1875]
[1647002251325,0.0854,2666.0,2664.9,0.87429561]
[1647002251630,1.146,2666.1,2665.3,0.93768]
[1647002251631,0.0425242,2666.1,2665.3,0.93768]
[1647002251818,0.08572,2666.5,2665.3,0.93768]
[1647002252023,1.54954571,2666.4,2665.3,0.93768]
[1647002252219,0.04130329,2666.3,2665.3,0.93768]
[1647002252418,0.00283785,2665.6,2665.3,0.93768]
[1647002252618,0.00283785,2665.6,2665.3,1.8754078]
[1647002252818,0.98652906,2665.5,2665.3,0.93768]
[1647002253018,0.98652906,2665.5,2665.2,0.3]
[1647002253221,0.98652906,2665.5,2665.1,1.12532]
[1647002253621,0.98652906,2665.5,2665.1,0.1875]
[1647002254021,0.98652906,2665.5,2665.0,0.1875]
[1647002254470,0.00283785,2665.4,2665.0,0.1875]
[1647002254869,0.00283785,2665.4,2665.0,0.93785]
[1647002255471,0.98652906,2665.5,2665.0,0.93785]
[1647002255671,0.00280331,2665.3,2665.0,0.93785]
[1647002256673,0.98652906,2665.5,2665.0,0.93785]
[1647002256674,1.04005474,2665.5,2665.0,0.93785]
[1647002257072,0.00280331,2665.3,2665.0,0.93785]
[1647002257274,0.00280331,2665.3,2665.0,5.7526044]
[1647002257474,0.00280331,2665.3,2665.1,1.31465]
[1647002257904,1.54961016,2666.1,2665.2,3.5]
[1647002258107,1.54961016,2666.1,2665.3,0.0734393]
[1647002258305,1.05685999,2665.9,2665.3,0.0734393]
[1647002258504,1.54961016,2665.8,2665.3,0.0734393]
[1647002258704,1.05685999,2665.9,2665.3,0.0734393]
[1647002259110,1.54955026,2665.8,2665.3,0.0734393]
[1647002259308,0.00283785,2665.7,2665.3,1.0111799]
[1647002259512,0.00283785,2665.7,2665.4,0.9377]
[1647002260211,1.54955026,2665.8,2665.4,0.9377]
[1647002260609,0.00283785,2665.7,2665.4,0.9377]
[1647002261110,0.00283785,2665.7,2665.3,3.1754]
[1647002261317,0.00283785,2665.7,2665.3,1.8754]
[1647002261512,1.54955026,2665.8,2665.3,2.8754]
[1647002261755,0.00283785,2665.7,2665.3,1.8754]
[1647002261955,0.00283785,2665.7,2665.3,2.8754]
[1647002262161,1.01740457,2665.5,2665.3,2.8754]
[1647002262961,0.00283785,2665.5,2665.3,2.9514102]
[1647002263162,0.00283785,2665.5,2665.3,2.8891723]
[1647002263360,0.00283785,2665.5,2665.3,4.1891723]
[1647002263562,0.00283785,2665.5,2665.3,3.1891723]
[1647002263761,1.54959041,2666.1,2665.3,4.1891723]
[1647002263959,1.08417623,2665.6,2665.3,1.3137723]
[1647002264159,0.00283785,2665.5,2665.4,0.93773]
[1647002264360,0.00283785,2665.5,2665.4,0.1875]
[1647002264779,0.00283785,2665.5,2665.2,1.87544]
[1647002264962,1.08417623,2665.6,2665.2,1.87544]
[1647002265163,1.08417623,2665.6,2665.0,2.88418741]
[1647002265404,1.08701408,2665.6,2665.0,2.88418741]
[1647002265702,1.08701408,2665.6,2665.1,0.93783]
[1647002265903,1.08701408,2665.6,2665.1,1.01179504]
[1647002266303,1.08417623,2665.6,2665.1,1.01179504]
[1647002266503,0.00283785,2665.5,2665.2,0.07461979]
[1647002267109,0.00283785,2665.5,2664.9,0.1875]
[1647002267311,0.04466114,2665.5,2664.6,0.1875]
[1647002267909,0.04749899,2665.5,2664.6,0.1875]
[1647002268110,0.04749899,2665.5,2664.7,2.81362]
[1647002268309,0.04749899,2665.5,2665.0,0.9378416]
[1647002268810,0.04466114,2665.5,2665.0,0.9378416]
[1647002269009,0.00283785,2665.2,2665.0,0.9378416]
[1647002269281,1.02275975,2665.2,2665.0,0.9378416]
[1647002269482,0.00283785,2665.2,2665.0,1.8757016]
[1647002269887,1.54976259,2665.9,2665.0,1.8757016]
[1647002270184,0.00283785,2665.2,2665.0,1.4193127]
[1647002270382,0.00283785,2665.2,2665.0,1.1253127]
[1647002271184,0.0513341,2665.8,2665.0,1.1253127]
[1647002271383,0.0513341,2665.8,2665.1,0.93783]
[1647002271384,0.00283785,2665.2,2665.1,0.93783]
[1647002272082,0.85446715,2665.3,2665.1,0.93783]
[1647002272488,0.85446715,2665.3,2665.0,1.1253127]
[1647002272489,0.857305,2665.3,2665.0,0.1875]
[1647002272683,0.857305,2665.3,2664.9,2.8134904]
[1647002273507,0.85446715,2665.3,2664.9,2.8134904]
[1647002273807,0.85531847,2665.3,2664.9,2.8134904]
[1647002274407,0.00085132,2665.3,2665.0,0.9378]
[1647002274608,1.54973008,2665.7,2665.0,0.9377816]
[1647002274808,1.67122101,2666.2,2665.0,0.9377816]
[1647002275015,0.00085132,2665.3,2665.0,0.9377816]
[1647002275812,1.13416795,2665.8,2665.0,0.9377816]
[1647002276013,0.93661344,2665.4,2665.0,0.9177816]
[1647002276210,0.00085134,2665.3,2665.0,0.9177816]
[1647002276409,0.00085134,2665.3,2665.2,0.93778]
[1647002277063,0.93661344,2665.4,2665.2,0.93778]
[1647002277362,5.0,2665.3,2664.9,2.81342]
[1647002277570,0.93661344,2665.4,2664.4,0.25]
[1647002277571,3.51202435,2665.2,2664.4,0.25]
[1647002277769,3.51202435,2665.2,2664.1,0.07450348]
[1647002277770,0.506794,2665.1,2664.1,0.07450348]
[1647002277967,0.461,2665.1,2664.1,0.07450348]
[1647002278164,0.461,2665.1,2663.7,0.07587448]
[1647002278165,3.5496916,2665.0,2663.7,0.07587448]
[1647002278362,0.04273337,2664.8,2663.7,0.07587448]
[1647002278565,1.06109104,2663.8,2663.4,0.25]
[1647002278763,1.06109104,2663.8,2663.2,0.84142508]
[1647002278764,1.06109104,2663.8,2663.3,0.08456881]
[1647002279863,1.06109104,2663.8,2663.1,0.47591745]
[1647002280072,1.06109104,2663.8,2663.1,0.17591745]
[1647002280414,1.99956104,2663.8,2663.1,0.09205185]